bitfinex/quotes_ETHUSD_20230118
["timestamp","ask_amount","ask_price","bid_price","bid_amount"]
[1674058602888,3.96392891,1537.9,1537.6,3.32965047]
[1674058603184,3.96392891,1537.9,1537.6,0.32965047]
[1674058603853,3.96392891,1537.9,1537.7,6.73308]
[1674058604063,3.96392891,1537.9,1537.8,3.0]
[1674058604405,3.96392891,1537.9,1537.8,3.23]
[1674058604559,3.96392891,1537.9,1537.8,0.807]
[1674058604769,3.96392891,1537.9,1537.8,3.807]
[1674058605530,3.96392891,1537.9,1537.8,17.81258]
[1674058605740,3.96392891,1537.9,1537.8,11.35279]
[1674058606077,3.96392891,1537.9,1537.8,16.85558]
[1674058606407,0.09,1538.5,1537.9,0.88212901]
[1674058606640,1.109,1538.5,1538.4,1.525]
[1674058606769,1.62083001,1538.6,1538.4,0.04877]
[1674058607124,2.27078001,1538.6,1538.4,0.04877]
[1674058607297,2.92073001,1538.6,1538.4,0.04877]
[1674058607504,0.4876,1538.5,1538.0,0.232]
[1674058607749,1.62083001,1538.6,1538.0,6.50195]
[1674058607963,2.92074001,1538.6,1538.1,0.23]
[1674058608207,2.92074001,1538.6,1537.8,13.04821]
[1674058608403,1.62083001,1538.6,1538.1,6.50152]
[1674058608624,1.62083001,1538.6,1538.1,14.37569047]
[1674058608980,1.62083001,1538.6,1538.1,6.87417047]
[1674058609239,1.62083001,1538.6,1538.2,4.0]
[1674058609410,1.62083001,1538.6,1538.2,10.50104]
[1674058609625,1.62083001,1538.6,1538.3,0.55965047]
[1674058609980,1.62083001,1538.6,1538.3,13.56064047]
[1674058610139,1.62083001,1538.6,1538.4,9.49997]
[1674058610345,1.62083001,1538.6,1538.5,0.807]
[1674058610575,1.62083001,1538.6,1538.5,14.80666]
[1674058610785,0.0526685,1538.8,1538.5,15.17931047]
[1674058611027,0.0526685,1538.8,1538.7,6.49899]
[1674058611247,0.0526685,1538.8,1538.7,9.77199]
[1674058611395,0.0526685,1538.8,1538.7,10.10164047]
[1674058611606,0.0526685,1538.8,1538.7,4.17965047]
[1674058611816,0.0526685,1538.8,1538.7,4.13665047]
[1674058612067,0.0526685,1538.8,1538.7,3.55965047]
[1674058612282,0.0526685,1538.8,1538.7,3.23]
[1674058613337,1.12435295,1539.0,1538.7,3.23]
[1674058613554,2.42389295,1539.0,1538.8,3.23]
[1674058613916,1.12435295,1539.0,1538.8,3.23]
[1674058614126,1.12435295,1539.0,1538.6,3.043]
[1674058614362,1.12435295,1539.0,1538.7,1.0]
[1674058614561,1.12435295,1539.0,1538.6,3.043]
[1674058614806,1.12435295,1539.0,1538.5,3.043]
[1674058615025,2.42390295,1539.0,1538.5,3.0]
[1674058615236,2.91130295,1539.0,1538.4,6.54293]
[1674058615780,2.42390295,1539.0,1538.4,8.56893]
[1674058616070,1.12435295,1539.0,1538.6,2.006]
[1674058616287,1.12435295,1539.0,1538.7,19.4967]
[1674058616498,1.12435295,1539.0,1538.7,19.5397]
[1674058616652,1.12435295,1539.0,1538.8,9.49842]
[1674058616863,1.12435295,1539.0,1538.8,9.54142]
[1674058617117,1.12435295,1539.0,1538.8,3.043]
[1674058617329,1.12435295,1539.0,1538.8,9.49851]
[1674058617605,1.12435295,1539.0,1538.8,16.04008]
[1674058617816,1.12435295,1539.0,1538.8,9.54151]
[1674058618032,1.12435295,1539.0,1538.8,0.043]
[1674058618367,1.61175295,1539.0,1538.6,6.54226]
[1674058618591,2.91131295,1539.0,1538.6,0.09177]
[1674058618776,2.91131295,1539.0,1538.6,0.04877]
[1674058619128,4.21087295,1539.0,1538.6,0.04877]
[1674058619492,4.21087295,1539.0,1538.3,6.54334]
[1674058619717,6.14717468,1539.0,1538.3,0.043]
[1674058620072,6.21317468,1539.0,1538.1,0.67596634]
[1674058620283,4.27687295,1539.0,1538.1,7.30510818]
[1674058620438,4.21087295,1539.0,1538.1,7.34810818]
[1674058621125,1.61175295,1539.0,1538.1,4.88396957]
[1674058621284,1.61175295,1539.0,1538.3,6.50045]
[1674058621654,1.61175295,1539.0,1538.4,3.0]
[1674058621861,1.12435295,1539.0,1538.4,9.49987]
[1674058622055,0.4875,1538.9,1538.4,3.043]
[1674058622218,1.61175295,1539.0,1538.3,9.54338]
[1674058622430,1.61175295,1539.0,1538.1,6.62872184]
[1674058622431,5.66292893,1539.0,1538.1,0.02062184]
[1674058622705,10.34100893,1539.0,1538.1,0.02062184]
[1674058622859,6.28983295,1539.0,1537.9,6.56801]
[1674058623066,4.05117598,1538.9,1538.1,0.35833005]
[1674058623323,3.89949,1538.7,1537.9,0.1300169]
[1674058623491,4.53877598,1538.6,1537.7,0.066]
[1674058623852,4.53877598,1538.6,1537.7,0.04879]
[1674058623853,3.90033,1538.4,1537.7,0.04879]
[1674058624175,2.60054,1538.2,1537.7,0.04879]
[1674058624532,2.60054,1538.2,1537.6,1.84590897]
[1674058624748,0.4877,1538.1,1537.6,1.84590897]
[1674058625060,3.90129,1538.0,1537.6,1.84590897]
[1674058625270,0.4878,1537.9,1537.6,1.84590897]
[1674058625536,3.90165,1537.8,1537.6,1.84590897]
[1674058625725,0.4879,1537.7,1537.6,1.84590897]
[1674058625941,1.30058,1537.8,1537.6,1.84590897]
[1674058626331,2.60116,1537.8,1537.6,1.74590897]
[1674058626538,1.78854,1537.7,1537.6,1.74590897]
[1674058626746,1.30064,1537.7,1537.6,1.74590897]
[1674058627015,2.60128,1537.7,1537.4,1.41719176]
[1674058627201,2.60162,1537.5,1537.4,1.35119176]
[1674058627586,3.08952,1537.5,1537.4,1.35119176]
[1674058628269,5.11152,1537.5,1537.2,0.066]
[1674058628427,3.90294,1537.3,1536.8,0.15326936]
[1674058628639,0.488,1537.2,1536.8,0.15326936]
[1674058628895,2.60231,1537.1,1536.8,0.15326936]
[1674058629109,1.30132,1536.9,1536.8,0.15326936]
[1674058629319,2.60264,1536.9,1536.8,0.15326936]
[1674058629478,0.5541,1537.0,1536.8,0.15326936]
[1674058629715,3.0906,1537.0,1536.8,0.15326936]
[1674058629925,2.6025,1537.0,1536.8,0.15326936]
[1674058630184,4.6285,1537.0,1536.8,0.15326936]
[1674058630511,0.4881,1536.9,1536.8,0.15326936]
[1674058630680,0.4881,1536.9,1536.5,0.67615202]
[1674058630681,3.09074,1536.9,1536.5,0.67615202]
[1674058630886,3.09074,1536.9,1536.4,1.01422804]
[1674058630887,8.856,1536.8,1536.4,1.01422804]
[1674058631120,4.3927,1536.7,1536.4,1.01422804]
[1674058631448,3.90528,1536.4,1536.1,0.15508775]
[1674058631660,0.4883,1536.3,1536.1,0.15508775]
[1674058631970,2.60382,1536.2,1536.1,8.775e-05]
[1674058632147,3.09212,1536.2,1536.1,8.775e-05]
[1674058633228,2.50955178,1536.2,1536.1,8.775e-05]
[1674058634364,6.50518698,1536.2,1535.6,0.15360961]
[1674058634626,1.30225,1535.8,1535.6,0.15360961]
[1674058635209,1.10225,1535.8,1535.6,0.15360961]
[1674058635420,0.066,1535.9,1535.6,0.15360961]
[1674058635611,28.15749,1536.1,1535.6,0.53567341]
[1674058635860,26.85542,1536.1,1535.6,0.53567341]
[1674058636256,25.5534,1536.1,1535.7,0.23]
[1674058636469,23.74446266,1536.1,1535.8,6.51117]
[1674058636812,0.066,1536.1,1535.9,3.23]
[1674058637152,0.066,1536.5,1536.0,3.0]
[1674058637327,1.30164,1536.6,1536.1,0.23]
[1674058637539,1.78987,1536.5,1536.1,0.62905984]
[1674058637751,1.30164,1536.6,1536.2,0.39905984]
[1674058637922,1.36754,1536.7,1536.3,0.23]
[1674058637923,1.30154,1536.7,1536.3,0.23]
[1674058638134,2.37276,1536.8,1536.3,0.23]
[1674058638347,1.0713,1536.8,1536.3,0.62905984]
[1674058638810,1.0713,1536.8,1536.3,7.13817984]
[1674058638811,0.5832,1536.8,1536.3,7.13817984]
[1674058638974,0.5832,1536.8,1536.4,3.0]
[1674058639185,0.5832,1536.8,1536.5,0.23]
[1674058639456,0.5832,1536.8,1536.5,0.66370553]
[1674058639851,0.5832,1536.8,1536.6,0.43370553]
[1674058640017,0.5832,1536.8,1536.7,0.23]
[1674058640231,0.5832,1536.8,1536.5,0.23]
[1674058640442,3.18602,1536.8,1536.3,0.49970553]
[1674058640654,0.4882,1536.7,1536.1,3.0]
[1674058640863,0.4882,1536.7,1536.0,0.066]
[1674058640864,1.30159,1536.6,1536.0,3.49970553]
[1674058641137,0.4882,1536.5,1536.1,0.43370553]
[1674058641287,0.4882,1536.6,1536.1,0.43370553]
[1674058641495,1.36751,1536.7,1536.1,0.43370553]
[1674058641496,1.78971,1536.7,1536.1,6.94366553]
[1674058641706,1.30151,1536.7,1536.1,0.49970553]
[1674058641921,1.30151,1536.7,1536.1,0.43370553]
[1674058642146,1.30151,1536.7,1536.1,6.94363553]
[1674058642381,1.30151,1536.7,1536.2,0.23]
[1674058642573,2.60307,1536.7,1536.2,0.23]
[1674058642969,2.60307,1536.7,1536.2,0.43370553]
[1674058643237,2.60307,1536.7,1536.1,3.0]
[1674058643391,3.90513,1536.5,1535.9,0.066]
[1674058643758,3.90513,1536.5,1535.8,0.67947454]
[1674058643972,3.90566,1536.3,1535.8,0.67947454]
[1674058644124,3.90566,1536.3,1535.6,0.15360961]
[1674058644335,0.4883,1536.2,1535.6,0.15360961]
[1674058644601,3.90615,1536.1,1535.6,0.15360961]
[1674058645993,3.90653,1535.9,1535.6,0.15360961]
[1674058646207,0.4885,1535.8,1535.6,0.15360961]
[1674058646521,1.30233,1535.7,1535.6,0.15360961]
[1674058646675,2.60466,1535.7,1535.6,0.15360961]
[1674058647147,1.85677,1535.8,1535.6,0.15360961]
[1674058647454,0.066,1535.9,1535.6,0.58731514]
[1674058647639,1.36799,1536.2,1535.7,0.43370553]
[1674058647848,1.30199,1536.2,1535.7,6.94536553]
[1674058648081,25.90787,1536.4,1535.9,1.0]
[1674058648082,24.6061,1536.4,1535.9,1.0]
[1674058648256,24.6061,1536.4,1536.0,0.23]
[1674058648460,24.6061,1536.4,1536.1,6.5099]
[1674058648672,24.6061,1536.4,1536.2,3.23]
[1674058648673,0.066,1536.4,1536.2,3.23]
[1674058649000,0.066,1536.7,1536.2,7.17324553]
[1674058649228,1.30151,1536.7,1536.3,3.43370553]
[1674058649440,2.60302,1536.7,1536.3,3.43370553]
[1674058649660,2.60302,1536.7,1536.3,0.43370553]
[1674058649997,1.30151,1536.7,1536.3,0.43370553]
[1674058650514,0.5832,1536.8,1536.4,0.23]
[1674058650930,0.5832,1536.8,1536.5,0.43370553]
[1674058651301,0.5832,1536.8,1536.6,0.23]
[1674058651881,0.5832,1536.8,1536.7,0.43370553]
[1674058652096,23.0636,1537.0,1536.8,1.1664]
[1674058652415,0.066,1537.0,1536.8,1.1664]
[1674058652716,1.30107,1537.2,1536.8,4.1664]
[1674058653035,1.0,1537.1,1536.8,1.1664]
[1674058653207,1.30123,1537.0,1536.6,0.066]
[1674058653421,1.30123,1537.0,1536.4,3.49970553]
[1674058653668,1.30123,1537.0,1536.5,0.23]
[1674058653874,2.60246,1537.0,1536.4,3.0]
[1674058654203,1.4881,1536.9,1536.4,3.0]
[1674058654362,1.4881,1536.9,1536.3,0.066]
[1674058654721,1.4881,1536.9,1536.2,0.066]
[1674058654722,4.09074,1536.9,1536.2,0.066]
[1674058654909,3.09074,1536.9,1535.9,17.50059517]
[1674058655132,3.09074,1536.9,1536.0,7.5103]
[1674058655342,3.09074,1536.9,1536.0,18.06635964]
[1674058655666,26.08084,1536.9,1536.1,0.86741106]
[1674058655812,26.14684,1536.9,1536.1,10.92311517]
[1674058656034,23.0561,1536.9,1536.2,3.97964964]
[1674058656245,23.0561,1536.9,1536.4,13.01734]
[1674058656472,23.0561,1536.9,1536.5,0.23]
[1674058656473,0.066,1536.9,1536.5,0.23]
[1674058656707,1.45150067,1537.3,1536.6,19.52334]
[1674058656708,0.06046067,1537.3,1536.6,19.52334]
[1674058657038,0.06046067,1537.3,1536.8,7.50671]
[1674058657258,0.06046067,1537.3,1536.9,3.0]
[1674058657420,0.06046067,1537.3,1536.9,3.43370553]
[1674058657628,2.66244067,1537.3,1536.9,3.0]
[1674058657838,2.66244067,1537.3,1536.7,3.066]
[1674058658049,2.66244067,1537.3,1536.8,0.23]
[1674058658534,0.488,1537.2,1536.6,0.066]
[1674058658725,0.488,1537.2,1536.3,6.50883]
[1674058658726,3.90363,1537.1,1536.3,6.57483]
[1674058659040,1.30138,1536.9,1536.4,1.0]
[1674058659250,2.60276,1536.9,1536.4,1.0]
[1674058659416,2.60276,1536.9,1536.3,6.57483]
[1674058659807,2.60276,1536.9,1536.3,0.066]
[1674058659993,2.60276,1536.9,1536.1,7.57588]
[1674058660300,2.60276,1536.9,1536.1,14.08559]
[1674058660616,2.60276,1536.9,1536.2,7.50949]
[1674058660774,2.60276,1536.9,1536.2,1.066]
[1674058660985,2.60276,1536.9,1536.2,1.0]
[1674058661198,2.60276,1536.9,1536.1,0.066]
[1674058661199,0.4881,1536.8,1536.1,0.066]
[1674058661459,3.90474,1536.6,1535.9,1.066]
[1674058661672,3.90474,1536.6,1535.9,1.0]
[1674058661883,4.39294,1536.6,1535.9,7.5108]
[1674058662093,4.39294,1536.6,1535.9,7.5768]
[1674058662250,3.90474,1536.6,1535.9,7.5768]
[1674058662461,5.20632,1536.6,1535.9,1.066]
[1674058662670,5.20632,1536.6,1535.7,0.066]
[1674058662671,3.90558,1536.3,1535.7,0.066]
[1674058663035,3.90558,1536.3,1535.6,0.83038731]
[1674058663258,3.09202,1536.3,1535.6,9.47313821]
[1674058663423,3.09202,1536.3,1535.7,2.14584193]
[1674058663612,3.09202,1536.3,1535.8,1.1306409]
[1674058663934,3.09202,1536.3,1535.7,1.69302962]
[1674058664140,3.09202,1536.3,1535.6,1.60600825]
[1674058664344,3.09202,1536.3,1535.6,0.54000825]
[1674058664595,9.93202,1536.3,1535.6,2.97914211]
[1674058664789,9.98692,1536.3,1535.7,1.13071175]
[1674058665014,3.90612,1536.1,1535.7,1.13071175]
[1674058665251,4.39452,1536.1,1535.7,2.1950454]
[1674058665418,4.39452,1536.1,1535.7,0.38639864]
[1674058665976,4.39452,1536.1,1535.6,0.83221841]
[1674058666197,4.39452,1536.1,1535.6,0.15360961]
[1674058666346,3.90654,1535.9,1535.6,0.83221841]
[1674058666557,4.39494,1535.9,1535.6,0.15360961]
[1674058666809,1.79058,1535.9,1535.7,1.0]
[1674058667034,2.60418,1536.0,1535.9,0.01860407]
[1674058667402,1.36804,1536.1,1535.9,0.92900271]
[1674058667616,1.79026,1536.2,1536.0,1.13060223]
[1674058667617,2.60392,1536.2,1536.0,1.13060223]
[1674058667876,1.30196,1536.2,1536.0,1.13060223]
[1674058668030,2.60392,1536.2,1536.1,0.91039864]
[1674058668782,1.36785,1536.3,1536.1,2.9497145]
[1674058668783,0.066,1536.3,1536.1,2.9497145]
[1674058669024,2.60358,1536.4,1536.2,3.23]
[1674058669204,1.30183,1536.3,1536.2,0.23]
[1674058669561,0.066,1536.6,1536.3,0.38639864]
[1674058669562,0.066,1536.5,1536.3,0.38639864]
[1674058669869,0.066,1536.7,1536.4,1.23]
[1674058670083,1.30121,1537.1,1536.5,8.31723558]
[1674058670318,1.30121,1537.1,1536.6,3.23]
[1674058670446,1.30121,1537.1,1536.6,0.23]
[1674058670447,1.3012,1537.1,1536.6,0.23]
[1674058670657,2.6024,1537.1,1536.6,0.23]
[1674058670935,1.0,1537.0,1536.5,0.23]
[1674058671093,2.6027,1536.9,1536.4,0.23]
[1674058671902,1.30153,1536.7,1536.2,3.74487392]
[1674058672043,1.30153,1536.7,1536.2,3.67887392]
[1674058672255,2.60306,1536.7,1536.1,4.76318334]
[1674058672461,1.36746,1536.8,1536.2,1.1303841]
[1674058672728,2.60293,1536.8,1536.3,1.0]
[1674058672939,2.60293,1536.8,1536.3,4.0]
[1674058673128,0.62328066,1536.8,1536.3,1.67887392]
[1674058673344,0.62328066,1536.8,1536.4,1.36029334]
[1674058673517,0.62328066,1536.8,1536.4,3.23]
[1674058674192,0.62328066,1536.8,1536.4,0.23]
[1674058674409,1.30136,1536.9,1536.4,0.23]
[1674058674730,3.0909,1536.8,1536.3,3.0]
[1674058675063,3.0909,1536.8,1536.1,0.066]
[1674058675217,6.94445392,1536.8,1536.0,3.67892353]
[1674058675411,3.1569,1536.8,1536.1,1.13047307]
[1674058675616,3.0909,1536.8,1536.1,1.13047307]
[1674058675882,2.6028,1536.8,1536.2,3.08383547]
[1674058676211,1.3014,1536.8,1536.3,4.51687171]
[1674058676355,1.3014,1536.8,1536.3,3.38639864]
[1674058676566,0.066,1537.0,1536.8,1.20558644]
[1674058676816,2.6025,1537.0,1536.8,1.20558644]
[1674058677671,1.30125,1537.0,1536.8,1.20558644]
[1674058677987,1.30123,1537.0,1536.8,1.20558644]
[1674058678877,1.36706,1537.2,1536.9,0.754]
[1674058679120,23.46466067,1537.3,1536.9,0.754]
[1674058679342,24.76564067,1537.3,1537.0,0.38639864]
[1674058679507,26.06667067,1537.3,1536.9,3.0]
[1674058679716,26.06667067,1537.3,1536.8,4.65798508]
[1674058679971,26.06667067,1537.3,1536.9,0.23]
[1674058680190,26.06667067,1537.3,1536.8,1.20558644]
[1674058680349,0.488,1537.2,1536.8,1.20558644]
[1674058680569,1.488,1537.2,1536.8,1.20558644]
[1674058680765,3.90348,1537.1,1536.8,1.20558644]
[1674058681770,1.4881,1537.0,1536.8,1.20558644]
[1674058681983,5.20528,1536.9,1536.8,1.20558644]
[1674058682195,5.20528,1536.9,1536.2,0.032]
[1674058682196,1.0,1536.8,1536.2,0.126]
[1674058682521,5.6944,1536.7,1536.0,0.12742459]
[1674058682714,1.0,1536.6,1536.0,0.12742459]
[1674058682932,5.69502,1536.5,1535.9,0.01860407]
[1674058683240,12.60102,1536.5,1535.9,0.01860407]
[1674058683788,7.84,1536.4,1535.9,0.01860407]
[1674058684077,4.39391,1536.3,1535.9,0.01860407]
[1674058684300,11.23391,1536.3,1535.9,0.01860407]
[1674058684447,15.1604744,1536.3,1535.9,0.01860407]
[1674058684813,4.45991,1536.3,1535.9,0.01860407]
[1674058685008,4.39391,1536.3,1535.9,0.01860407]
[1674058685429,3.90597,1536.1,1535.9,0.01860407]
[1674058685638,0.4884,1536.0,1535.9,0.01860407]
[1674058685812,3.09256,1536.0,1535.9,0.01860407]
[1674058686016,2.60416,1536.0,1535.9,0.01860407]
[1674058686866,2.60416,1536.0,1535.9,0.54260407]
[1674058687081,2.60416,1536.0,1535.9,0.01860407]
[1674058687319,0.066,1536.1,1535.9,0.77260407]
[1674058687506,1.30183,1536.3,1536.0,0.23]
[1674058687960,2.60366,1536.3,1536.0,0.23]
[1674058689330,2.60366,1536.3,1535.9,0.01860407]
[1674058689483,1.4883,1536.2,1535.4,1.0]
[1674058689692,1.4883,1536.2,1535.5,1.13081274]
[1674058689693,2.60422,1536.0,1535.5,1.13081274]
[1674058689958,2.60422,1536.0,1535.3,0.066]
[1674058690171,2.60422,1536.0,1535.3,1.13086399]
[1674058690329,4.31295911,1535.9,1535.2,0.22441274]
[1674058690538,4.31295911,1535.9,1535.2,0.15841274]
[1674058690539,2.60468,1535.7,1535.2,0.15841274]
[1674058690788,4.39552,1535.7,1535.2,0.15841274]
[1674058691587,1.0,1535.6,1535.2,0.15841274]
[1674058691935,3.90756,1535.5,1535.2,0.15841274]
[1674058693486,1.4886,1535.4,1535.2,0.15841274]
[1674058693888,0.4886,1535.4,1535.2,0.68241274]
[1674058694019,1.3026,1535.4,1535.2,0.68241274]
[1674058694683,1.30252,1535.5,1535.2,0.68241274]
[1674058694912,3.90749,1535.6,1535.2,0.15841274]
[1674058695058,1.30251,1535.5,1535.2,0.15841274]
[1674058695523,2.60502,1535.5,1535.2,0.15841274]
[1674058695742,2.605,1535.5,1535.2,0.15841274]
[1674058695911,3.0935,1535.5,1535.2,0.15841274]
[1674058696110,9.9335,1535.5,1535.2,0.15841274]
[1674058696314,9.9995,1535.5,1535.2,0.15841274]
[1674058696528,3.90801,1535.3,1535.2,0.15841274]
[1674058696776,3.90801,1535.3,1535.1,0.15928008]
[1674058696777,2.70134567,1535.3,1535.0,1.86870936]
[1674058697497,3.18994567,1535.3,1535.0,1.86870936]
[1674058699252,0.09600567,1535.3,1535.0,1.86870936]
[1674058699469,0.09600567,1535.3,1535.0,2.25779647]
[1674058699676,1.39867567,1535.3,1535.1,0.38908711]
[1674058699921,1.39867567,1535.3,1535.0,1.86870936]
[1674058700111,1.39867567,1535.3,1535.0,2.25779647]
[1674058700551,0.4886,1535.2,1535.0,1.86870936]
[1674058700728,3.90852,1535.1,1535.0,1.86870936]
[1674058701307,4.39722,1535.1,1535.0,1.86870936]
[1674058701460,8.21989688,1535.1,1534.8,0.15841274]
[1674058701836,12.05204,1534.9,1534.8,0.15841274]
[1674058701981,12.60674,1534.9,1534.8,0.15841274]
[1674058702350,5.76674,1534.9,1534.8,0.15841274]
[1674058702959,5.76674,1534.9,1534.6,0.007]
[1674058703149,5.45460711,1534.8,1534.4,0.15533801]
[1674058703509,4.9096,1534.7,1534.4,0.15533801]
[1674058703664,3.9096,1534.7,1534.4,0.54442512]
[1674058704145,4.3984,1534.7,1534.2,1.49790076]
[1674058704309,1.0,1534.6,1534.2,1.49790076]
[1674058704510,4.4644,1534.7,1534.2,1.88698787]
[1674058704719,4.3984,1534.7,1534.2,1.88698787]
[1674058704970,11.2384,1534.7,1534.2,1.49790076]
[1674058705211,4.4524,1534.7,1534.2,1.49790076]
[1674058705405,4.3984,1534.7,1534.2,1.49790076]
[1674058705555,4.3984,1534.7,1534.2,2.229814]
[1674058705766,7.76937163,1534.7,1534.2,1.49790076]
[1674058706034,11.18816992,1534.6,1534.1,0.16959654]
[1674058706183,6.84,1534.4,1534.1,0.16959654]
[1674058706400,17.90708943,1534.3,1533.6,0.36595662]
[1674058706608,4.85431276,1534.2,1533.7,0.02391095]
[1674058706867,5.70392,1534.1,1533.7,0.02390939]
[1674058707083,5.70392,1534.1,1533.3,1.12768777]
[1674058707084,12.60992,1534.1,1533.2,2.96786812]
[1674058707308,1.0,1534.0,1533.5,0.02391407]
[1674058707445,1.30384,1534.0,1533.4,6.52113]
[1674058707655,1.30384,1534.0,1533.6,0.32625003]
[1674058708002,0.066,1534.2,1533.7,0.02391095]
[1674058708327,1.30339,1534.5,1533.8,0.32625003]
[1674058708666,1.30331,1534.6,1534.0,6.51886]
[1674058708831,1.30331,1534.6,1534.1,3.25390472]
[1674058709023,1.30331,1534.6,1534.2,1.0]
[1674058709236,0.066,1534.7,1534.3,0.23]
[1674058709448,2.60637,1534.7,1534.2,0.066]
[1674058709656,1.515,1534.6,1534.2,0.052]
[1674058709912,3.91011,1534.5,1533.6,0.03]
[1674058710125,30.76562252,1534.5,1533.8,0.02390939]
[1674058710296,1.4889,1534.4,1533.5,7.54479783]
[1674058710650,3.91097,1534.2,1533.5,1.08990783]
[1674058710804,2.6073,1534.2,1533.5,0.02390783]
[1674058711019,9.4473,1534.2,1533.5,0.02390783]
[1674058711229,3.82581252,1534.1,1533.4,0.02391251]
[1674058711504,3.91185,1533.8,1533.3,0.02391407]
[1674058712279,1.0,1533.7,1533.4,0.16768593]
[1674058712537,1.30412,1533.6,1533.5,0.02391407]
[1674058712771,1.30412,1533.6,1533.4,0.16768593]
[1674058712938,2.60824,1533.6,1533.4,0.16768593]
[1674058713130,3.09744,1533.6,1533.4,0.16768593]
[1674058713807,2.60824,1533.6,1533.4,0.16768593]
[1674058714377,1.30412,1533.6,1533.2,2.13938192]
[1674058714587,1.37009,1533.7,1533.3,0.02391719]
[1674058714588,1.30409,1533.7,1533.3,0.02391719]
[1674058714803,1.36996,1533.8,1533.3,0.02391563]
[1674058714804,2.60798,1533.8,1533.3,0.02391563]
[1674058715063,1.30396,1533.8,1533.3,0.02391563]
[1674058715231,26.50479,1533.9,1533.3,0.25391563]
[1674058715452,26.50479,1533.9,1533.3,11.42572566]
[1674058715453,0.066,1533.9,1533.3,11.42572566]
[1674058715652,1.30373,1534.1,1533.3,11.16547563]
[1674058715989,2.6075,1534.1,1533.3,17.13355563]
[1674058716212,2.6075,1534.1,1533.4,0.07625003]
[1674058716583,1.30373,1534.1,1533.5,0.02391407]
[1674058716748,1.30368,1534.2,1533.5,9.87118254]
[1674058716982,25.74365,1534.3,1533.5,16.45821254]
[1674058717122,25.74365,1534.3,1533.6,7.39644837]
[1674058717327,1.36955,1534.3,1533.7,4.02391095]
[1674058717537,1.30355,1534.3,1533.8,0.25390939]
[1674058717747,1.30355,1534.3,1533.9,0.02390783]
[1674058717992,0.05468268,1534.4,1533.9,6.54322627]
[1674058718169,0.05468268,1534.4,1534.0,3.23]
[1674058718377,0.05468268,1534.4,1534.1,0.02390472]
[1674058718588,0.05468268,1534.4,1534.1,0.02390315]
[1674058719637,0.05468268,1534.4,1534.0,0.75390315]
[1674058719847,0.05468268,1534.4,1534.1,13.26669]
[1674058720109,0.05468268,1534.4,1534.2,3.0]
[1674058720439,0.05468268,1534.4,1534.3,7.51763]
[1674058720586,0.05468268,1534.4,1534.3,10.58363]
[1674058720958,1.80293,1535.0,1534.3,9.58363]
[1674058721146,1.80293,1535.0,1534.4,3.0]
[1674058721317,2.30304,1534.9,1534.3,0.066]
[1674058721529,1.79192,1534.8,1534.1,0.066]
[1674058721741,3.09504,1534.8,1533.9,6.58516]
[1674058722210,1.0,1534.7,1533.9,0.066]
[1674058722537,3.91016,1534.5,1533.8,0.066]
[1674058722757,3.91016,1534.5,1533.8,0.054]
[1674058722758,0.4889,1534.4,1533.8,0.054]
[1674058723062,3.91071,1534.3,1533.6,1.066]
[1674058723249,0.489,1534.2,1533.6,1.0]
[1674058723458,1.30365,1534.2,1533.6,1.0]
[1674058724006,1.30365,1534.2,1533.5,14.10768]
[1674058724195,2.6073,1534.2,1533.5,0.066]
[1674058724370,0.489,1534.1,1533.3,6.58764]
[1674058724736,2.60766,1534.0,1533.3,0.066]
[1674058724954,0.4891,1533.9,1533.2,2.20538192]
[1674058725260,1.30399,1533.8,1533.2,2.13938192]
[1674058725471,1.79319,1533.7,1533.2,2.13938192]
[1674058725641,1.30409,1533.7,1533.2,2.13938192]
[1674058726309,2.30409,1533.7,1533.2,2.13938192]
[1674058726636,1.30409,1533.7,1533.2,2.13938192]
[1674058726857,0.4892,1533.6,1533.2,2.13938192]
[1674058727022,1.30421,1533.5,1533.2,2.13938192]
[1674058727234,2.60842,1533.5,1533.2,2.13938192]
[1674058727583,3.09762,1533.5,1533.2,2.13938192]
[1674058728348,1.79341,1533.5,1533.2,2.13938192]
[1674058728536,1.30421,1533.5,1533.2,2.13938192]
[1674058729075,1.30412,1533.6,1533.2,2.13938192]
[1674058729268,1.30412,1533.6,1533.3,0.02537544]
[1674058729490,1.30412,1533.6,1533.3,0.02537379]
[1674058729695,1.30409,1533.7,1533.3,0.02537379]
[1674058730076,2.60818,1533.7,1533.3,0.02537379]
[1674058730324,1.79312,1533.7,1533.3,0.02537379]
[1674058730532,8.63312,1533.7,1533.3,0.02537379]
[1674058730865,1.85912,1533.7,1533.3,0.02537379]
[1674058731081,1.80312,1533.7,1533.3,0.02537379]
[1674058731228,1.79312,1533.7,1533.3,0.02537379]
[1674058731692,2.79312,1533.7,1533.3,0.02537379]
[1674058733075,2.79312,1533.7,1533.2,2.13938192]
[1674058733076,6.84,1533.6,1533.2,2.13938192]
[1674058733392,9.44872,1533.3,1533.2,2.13938192]
[1674058733602,2.67472,1533.3,1533.2,2.13938192]
[1674058733756,2.60872,1533.3,1533.2,2.13938192]
[1674058734226,3.09792,1533.3,1533.2,2.13938192]
[1674058734440,1.90654,1533.3,1533.2,2.13938192]
[1674058735146,8.74654,1533.3,1533.2,8.192e-05]
[1674058735369,1.97254,1533.3,1533.2,8.192e-05]
[1674058735606,2.39574,1533.3,1533.2,8.192e-05]
[1674058735964,9.23574,1533.3,1533.2,8.192e-05]
[1674058736226,9.30174,1533.3,1533.2,8.192e-05]
[1674058736912,10.81374,1533.3,1533.2,8.192e-05]
[1674058737122,11.45048173,1533.3,1533.0,0.00035534]
[1674058737389,1.50830136,1533.1,1532.9,0.19068313]
[1674058737563,7.37681,1533.0,1532.8,1.29137914]
[1674058737909,10.03951,1532.9,1532.6,0.16768593]
[1674058738234,6.84,1532.7,1532.5,0.1681212]
[1674058738538,7.84,1532.6,1532.3,0.1858812]
[1674058738756,1.066,1532.6,1532.3,0.1858812]